fUST/lending_fUST_20250507
["ID","MTS","AMOUNT","RATE_DAILY","PERIOD"]
[360105751,1746551441724,-844.65,0.00019178,2]
[360105753,1746551441732,-1000.0,0.00019178,2]
[360105755,1746551441741,-400.0,0.00019178,2]
[360105757,1746551441751,-400.0,0.00019178,2]
[360105759,1746551441761,-400.0,0.00019178,2]
[360105761,1746551441770,-400.0,0.00019178,2]
[360105763,1746551441780,-400.0,0.00019178,2]
[360105765,1746551441789,-400.0,0.00019178,2]
[360105767,1746551441801,-400.0,0.00019178,2]
[360105769,1746551441810,-400.0,0.00019178,2]
[360105771,1746551441820,-400.0,0.00019178,2]
[360105773,1746551441830,-1026.77,0.00019178,2]
[360105775,1746551441839,-400.0,0.00019178,2]
[360105777,1746551441849,-400.0,0.00019178,2]
[360105780,1746551441859,-689.89,0.00019178,2]
[360105782,1746551441869,-400.0,0.00019178,2]
[360105784,1746551441879,-176.15756633,0.00019178,2]
[360105786,1746551441889,-400.0,0.00019178,2]
[360105788,1746551441898,-585.18,0.00019178,2]
[360105790,1746551441908,-400.0,0.00019178,2]
[360105792,1746551441918,-400.0,0.00019178,2]
[360105794,1746551441927,-400.0,0.00019178,2]
[360105796,1746551441937,-400.0,0.00019178,2]
[360105798,1746551441946,-474.87,0.00019178,2]
[360105800,1746551441955,-400.0,0.00019178,2]
[360105802,1746551441965,-418.11095225,0.00019178,2]
[360105804,1746551441975,-400.0,0.00019178,2]
[360105806,1746551441984,-400.0,0.00019178,2]
[360105808,1746551441993,-400.0,0.00019178,2]
[360105810,1746551442003,-400.0,0.00019178,2]
[360105812,1746551442012,-400.0,0.00019178,2]
[360105814,1746551442021,-400.0,0.00019178,2]
[360105816,1746551442030,-400.0,0.00019178,2]
[360105818,1746551442039,-400.0,0.00019178,2]
[360105820,1746551442049,-400.0,0.00019178,2]
[360105822,1746551442058,-400.0,0.00019178,2]
[360105824,1746551442068,-506.24899933,0.00019178,2]
[360105825,1746551442078,-400.0,0.00019178,2]
[360105826,1746551442087,-642.63,0.00019178,2]
[360105827,1746551442098,-400.0,0.00019178,2]
[360105828,1746551442107,-400.0,0.00019178,2]
[360105829,1746551442118,-509.59,0.00019178,2]
[360105830,1746551442127,-400.0,0.00019178,2]
[360105831,1746551442137,-400.0,0.00019178,2]
[360105832,1746551442146,-332.90977984,0.00019178,2]
[360105833,1746551442155,-400.0,0.00019178,2]
[360105834,1746551442164,-415.3774956,0.00019178,2]
[360105835,1746551442173,-400.0,0.00019178,2]
[360105836,1746551442182,-400.0,0.00019178,2]
[360105837,1746551442193,-217.8951033,0.00019178,2]
[360105838,1746551442204,-404.44071544,0.00019178,2]
[360105839,1746551442213,-505.38791715,0.00019178,2]
[360105840,1746551442222,-400.0,0.00019178,2]
[360105841,1746551442232,-400.0,0.00019178,2]
[360105842,1746551442242,-400.0,0.00019178,2]
[360105843,1746551442251,-400.0,0.00019178,2]
[360105844,1746551442261,-400.0,0.00019178,2]
[360105845,1746551442271,-400.0,0.00019178,2]
[360105846,1746551442280,-400.0,0.00019178,2]
[360105847,1746551442290,-625.03,0.00019178,2]
[360105848,1746551442299,-1175.32,0.00019178,2]
[360105849,1746551442309,-400.0,0.00019178,2]
[360105850,1746551442318,-400.0,0.00019178,2]
[360105851,1746551442328,-408.95706626,0.00019178,2]
[360105853,1746551442338,-400.0,0.00019178,2]
[360105855,1746551442347,-400.0,0.00019178,2]
[360105857,1746551442357,-400.0,0.00019178,2]
[360105859,1746551442368,-400.0,0.00019178,2]
[360105861,1746551442377,-400.0,0.00019178,2]
[360105863,1746551442387,-400.0,0.00019178,2]
[360105865,1746551442397,-1181.51,0.00019178,2]
[360105867,1746551442406,-400.0,0.00019178,2]
[360105869,1746551442415,-1181.51,0.00019178,2]
[360105871,1746551442425,-1181.51,0.00019178,2]
[360105873,1746551442435,-1732.06,0.00019178,2]
[360105875,1746551442444,-1181.51,0.00019178,2]
[360105877,1746551442453,-1181.51,0.00019178,2]
[360105879,1746551442462,-1181.51,0.00019178,2]
[360105881,1746551442472,-360.81304676,0.00019178,2]
[360105883,1746551442481,-1181.51,0.00019178,2]
[360105885,1746551442490,-403.64686653,0.00019178,2]
[360105887,1746551442499,-1181.51,0.00019178,2]
[360105889,1746551442509,-1181.51,0.00019178,2]
[360105891,1746551442518,-1181.51,0.00019178,2]
[360105893,1746551442528,-1181.51,0.00019178,2]
[360105895,1746551442537,-1181.51,0.00019178,2]
[360105897,1746551442546,-1181.51,0.00019178,2]
[360105899,1746551442557,-400.0,0.00019178,2]
[360105901,1746551442566,-1181.51,0.00019178,2]
[360105903,1746551442575,-400.0,0.00019178,2]
[360105905,1746551442584,-1181.51,0.00019178,2]
[360105907,1746551442594,-401.53584369,0.00019178,2]
[360105908,1746551442604,-1181.51,0.00019178,2]
[360105910,1746551442617,-1181.51,0.00019178,2]
[360105912,1746551442627,-1181.51,0.00019178,2]
[360105914,1746551442636,-1181.51,0.00019178,2]
[360105916,1746551442646,-400.86104084,0.00019178,2]
[360105918,1746551442655,-1181.51,0.00019178,2]
[360105920,1746551442664,-400.0,0.00019178,2]
[360105922,1746551442674,-400.0,0.00019178,2]
[360105924,1746551442684,-1181.51,0.00019178,2]
[360105926,1746551442694,-1181.51,0.00019178,2]
[360105928,1746551442703,-1181.51,0.00019178,2]
[360105930,1746551442712,-400.0,0.00019178,2]
[360105932,1746551442722,-1181.642461,0.00019178,2]
[360105934,1746551442731,-561.19,0.00019178,2]
[360105936,1746551442741,-753.36,0.00019178,2]
[360105938,1746551442750,-400.0,0.00019178,2]
[360105940,1746551442759,-898.37,0.00019178,2]
[360105942,1746551442769,-400.0,0.00019178,2]
[360105944,1746551442778,-608.74,0.00019178,2]
[360105946,1746551442787,-400.0,0.00019178,2]
[360105948,1746551442796,-400.0,0.00019178,2]
[360105950,1746551442806,-400.0,0.00019178,2]
[360105951,1746551442815,-400.0,0.00019178,2]
[360105953,1746551442825,-401.22799411,0.00019178,2]
[360105955,1746551442835,-400.0,0.00019178,2]
[360105957,1746551442845,-400.0,0.00019178,2]
[360105959,1746551442855,-400.0,0.00019178,2]
[360105960,1746551442866,-417.89,0.00019178,2]
[360105961,1746551442875,-405.32755235,0.00019178,2]
[360105962,1746551442884,-401.67160681,0.00019178,2]
[360105963,1746551442895,-400.0,0.00019178,2]
[360105964,1746551442905,-400.0,0.00019178,2]
[360105965,1746551442915,-186.25005525,0.00019178,2]
[360105966,1746551442924,-400.0,0.00019178,2]
[360105967,1746551442933,-401.58873496,0.00019178,2]
[360105968,1746551442943,-500.0,0.00019178,2]
[360105969,1746551442952,-400.0,0.00019178,2]
[360105970,1746551442961,-500.0,0.00019178,2]
[360105971,1746551442971,-500.0,0.00019178,2]
[360105972,1746551442980,-400.0,0.00019178,2]
[360105973,1746551442989,-208.60332497,0.00019178,2]
[360105974,1746551442999,-400.0,0.00019178,2]
[360105975,1746551443009,-400.0,0.00019178,2]
[360105976,1746551443019,-401.39677314,0.00019178,2]
[360105977,1746551443028,-460.40549829,0.00019178,2]
[360105978,1746551443037,-401.30935804,0.00019178,2]
[360105979,1746551443046,-400.0,0.00019178,2]
[360105981,1746551443056,-400.0,0.00019178,2]
[360105982,1746551443065,-400.0,0.00019178,2]
[360105984,1746551443074,-400.0,0.00019178,2]
[360105986,1746551443083,-402.9905216,0.00019178,2]
[360105989,1746551443092,-409.61226827,0.00019178,2]
[360105992,1746551443101,-5262.57,0.00019178,2]
[360106008,1746551443243,-400.0,0.00019178,2]
[360106010,1746551443253,-400.0,0.00019178,2]
[360106012,1746551443263,-400.0,0.00019178,2]
[360106014,1746551443273,-400.0,0.00019178,2]
[360106016,1746551443282,-400.0,0.00019178,2]
[360106018,1746551443291,-400.0,0.00019178,2]
[360106020,1746551443300,-400.0,0.00019178,2]
[360106022,1746551443309,-400.0,0.00019178,2]
[360106024,1746551443319,-431.81714596,0.00019178,2]
[360106026,1746551443328,-400.0,0.00019178,2]
[360106028,1746551443338,-400.0,0.00019178,2]
[360106030,1746551443347,-506.65,0.00019178,2]
[360106032,1746551443356,-374.12205141,0.00019178,2]
[360106034,1746551443367,-400.0,0.00019178,2]
[360106036,1746551443377,-867.45,0.00019178,2]
[360106037,1746551443386,-400.0,0.00019178,2]
[360106040,1746551443396,-400.0,0.00019178,2]
[360106042,1746551443406,-400.0,0.00019178,2]
[360106043,1746551443415,-428.54,0.00019178,2]
[360106045,1746551443424,-400.0,0.00019178,2]
[360106047,1746551443434,-400.0,0.00019178,2]
[360106049,1746551443443,-400.0,0.00019178,2]
[360106051,1746551443453,-400.0,0.00019178,2]
[360106053,1746551443462,-400.0,0.00019178,2]
[360106055,1746551443471,-1734.58,0.00019178,2]
[360106057,1746551443481,-400.0,0.00019178,2]
[360106059,1746551443490,-781.9,0.00019178,2]
[360106061,1746551443500,-400.0,0.00019178,2]
[360106063,1746551443509,-400.0,0.00019178,2]
[360106065,1746551443518,-400.0,0.00019178,2]
[360106067,1746551443528,-400.0,0.00019178,2]
[360106069,1746551443538,-400.0,0.00019178,2]
[360106071,1746551443550,-405.8713486,0.00019178,2]
[360106073,1746551443559,-400.0,0.00019178,2]
[360106075,1746551443568,-400.84686798,0.00019178,2]
[360106077,1746551443578,-516.26450725,0.00019178,2]
[360106079,1746551443587,-400.0,0.00019178,2]
[360106081,1746551443597,-400.0,0.00019178,2]
[360106083,1746551443606,-1095.13,0.00019178,2]
[360106085,1746551443617,-220.53743959,0.00019178,2]
[360106087,1746551443627,-3412.15,0.00019178,2]
[360106089,1746551443636,-513.7459558,0.00019178,2]
[360106091,1746551443645,-400.0,0.00019178,2]
[360106093,1746551443654,-206.0059834,0.00019178,2]
[360106095,1746551443663,-1635.25,0.00019178,2]
[360106097,1746551443672,-400.0,0.00019178,2]
[360106099,1746551443682,-400.0,0.00019178,2]
[360106101,1746551443691,-403.14127598,0.00019178,2]
[360106103,1746551443700,-1172.28,0.00019178,2]
[360106105,1746551443709,-400.0,0.00019178,2]
[360106107,1746551443719,-400.0,0.00019178,2]
[360106109,1746551443729,-400.0,0.00019178,2]
[360106111,1746551443738,-400.0,0.00019178,2]
[360106113,1746551443747,-400.0,0.00019178,2]
[360106115,1746551443756,-495.61,0.00019178,2]
[360106117,1746551443766,-565.81,0.00019178,2]
[360106118,1746551443775,-1308.2,0.00019178,2]
[360106120,1746551443784,-400.0,0.00019178,2]
[360106122,1746551443794,-400.0,0.00019178,2]
[360106124,1746551443803,-291.15370518,0.00019178,2]
[360106126,1746551443812,-5870.74,0.00019178,2]
[360106128,1746551443821,-758.88,0.00019178,2]
[360106130,1746551443830,-510.74,0.00019178,2]
[360106132,1746551443839,-400.0,0.00019178,2]
[360106134,1746551443848,-964.72,0.00019178,2]
[360106136,1746551443857,-895.02,0.00019178,2]
[360106138,1746551443867,-400.0,0.00019178,2]
[360106140,1746551443877,-400.0,0.00019178,2]
[360106142,1746551443886,-400.0,0.00019178,2]
[360106144,1746551443895,-403.34010556,0.00019178,2]
[360106146,1746551443905,-400.0,0.00019178,2]
[360106148,1746551443914,-1684.37,0.00019178,2]
[360106149,1746551443923,-400.0,0.00019178,2]
[360106150,1746551443932,-403.83784036,0.00019178,2]
[360106151,1746551443942,-400.0,0.00019178,2]
[360106152,1746551443951,-400.0,0.00019178,2]
[360106153,1746551443960,-402.10659483,0.00019178,2]
[360106154,1746551443969,-400.0,0.00019178,2]
[360106155,1746551443979,-400.0,0.00019178,2]
[360106156,1746551443988,-400.0,0.00019178,2]
[360106157,1746551443998,-400.0,0.00019178,2]
[360106158,1746551444007,-400.0,0.00019178,2]
[360106159,1746551444016,-400.0,0.00019178,2]
[360106160,1746551444025,-400.0,0.00019178,2]
[360106161,1746551444034,-855.56,0.00019178,2]
[360106162,1746551444043,-406.79252526,0.00019178,2]
[360106163,1746551444052,-402.77803583,0.00019178,2]
[360106164,1746551444062,-400.0,0.00019178,2]
[360106165,1746551444071,-1671.52,0.00019178,2]
[360106167,1746551444080,-400.0,0.00019178,2]
[360106169,1746551444089,-400.0,0.00019178,2]
[360106171,1746551444098,-400.0,0.00019178,2]
[360106173,1746551444108,-400.0,0.00019178,2]
[360106175,1746551444119,-502.8703402,0.00019178,2]
[360106177,1746551444129,-400.0,0.00019178,2]
[360106179,1746551444138,-400.0,0.00019178,2]
[360106181,1746551444148,-400.0,0.00019178,2]
[360106183,1746551444157,-502.1374089,0.00019178,2]
[360106185,1746551444166,-400.0,0.00019178,2]
[360106187,1746551444176,-400.0,0.00019178,2]
[360106189,1746551444186,-400.0,0.00019178,2]
[360106191,1746551444199,-400.0,0.00019178,2]
[360106193,1746551444209,-502.34032409,0.00019178,2]
[360106195,1746551444218,-400.0,0.00019178,2]
[360106197,1746551444228,-400.0,0.00019178,2]
[360106199,1746551444238,-401.42416385,0.00019178,2]
[360106201,1746551444248,-400.0,0.00019178,2]
[360106203,1746551444258,-400.0,0.00019178,2]
[360106205,1746551444267,-449.36,0.00019178,2]
[360106207,1746551444276,-400.0,0.00019178,2]
[360106209,1746551444287,-1515.05,0.00019178,2]
[360106212,1746551444296,-400.0,0.00019178,2]
[360106214,1746551444306,-400.0,0.00019178,2]
[360106216,1746551444316,-518.61,0.00019178,2]
[360106218,1746551444325,-501.97207744,0.00019178,2]
[360106220,1746551444335,-400.0,0.00019178,2]
[360106222,1746551444344,-402.47607156,0.00019178,2]
[360106224,1746551444353,-400.0,0.00019178,2]
[360106226,1746551444362,-473.40339252,0.00019178,2]
[360106228,1746551444372,-400.0,0.00019178,2]
[360106230,1746551444381,-553.59,0.00019178,2]
[360106232,1746551444391,-436.53221498,0.00019178,2]
[360106234,1746551444401,-400.0,0.00019178,2]
[360106236,1746551444410,-400.0,0.00019178,2]
[360106238,1746551444419,-400.0,0.00019178,2]
[360106240,1746551444429,-1423.51,0.00019178,2]
[360106241,1746551444439,-400.0,0.00019178,2]
[360106244,1746551444449,-400.0,0.00019178,2]
[360106246,1746551444458,-153.94588979,0.00019178,2]
[360106248,1746551444467,-400.0,0.00019178,2]
[360106249,1746551444476,-569.36,0.00019178,2]
[360106251,1746551444486,-400.0,0.00019178,2]
[360106253,1746551444495,-400.0,0.00019178,2]
[360106255,1746551444504,-403.34072284,0.00019178,2]
[360106257,1746551444513,-840.75,0.00019178,2]
[360106259,1746551444523,-400.0,0.00019178,2]
[360106261,1746551444532,-400.0,0.00019178,2]
[360106263,1746551444541,-400.0,0.00019178,2]
[360106265,1746551444550,-502.79430711,0.00019178,2]
[360106268,1746551444561,-741.85,0.00019178,2]
[360106270,1746551444570,-741.85,0.00019178,2]
[360106272,1746551444579,-741.85,0.00019178,2]
[360106274,1746551444589,-741.85,0.00019178,2]
[360106276,1746551444598,-741.85,0.00019178,2]
[360106278,1746551444607,-741.85,0.00019178,2]
[360106280,1746551444618,-741.85,0.00019178,2]
[360106282,1746551444627,-400.0,0.00019178,2]
[360106284,1746551444637,-741.85,0.00019178,2]
[360106286,1746551444646,-741.85,0.00019178,2]
[360106288,1746551444655,-400.0,0.00019178,2]
[360106290,1746551444665,-741.85,0.00019178,2]
[360106292,1746551444675,-400.0,0.00019178,2]
[360106294,1746551444685,-741.85,0.00019178,2]
[360106296,1746551444694,-741.85,0.00019178,2]
[360106298,1746551444703,-779.44,0.00019178,2]
[360106300,1746551444714,-741.85,0.00019178,2]
[360106302,1746551444723,-741.85,0.00019178,2]
[360106304,1746551444732,-500.0,0.00019178,2]
[360106306,1746551444741,-741.85,0.00019178,2]
[360106308,1746551444751,-402.94644609,0.00019178,2]
[360106310,1746551444760,-741.85,0.00019178,2]
[360106312,1746551444769,-402.91911364,0.00019178,2]
[360106314,1746551444778,-741.85,0.00019178,2]
[360106316,1746551444788,-741.85,0.00019178,2]
[360106317,1746551444797,-741.85,0.00019178,2]
[360106318,1746551444806,-741.85,0.00019178,2]
[360106319,1746551444815,-741.85,0.00019178,2]
[360106321,1746551444824,-741.85,0.00019178,2]
[360106323,1746551444834,-741.85,0.00019178,2]
[360106324,1746551444843,-741.99484471,0.00019178,2]
[360106326,1746551444853,-611.24,0.00019178,2]
[360106328,1746551444863,-400.0,0.00019178,2]
[360106329,1746551444873,-1103.28,0.00019178,2]
[360106331,1746551444882,-400.0,0.00019178,2]
[360106333,1746551444891,-209.64157535,0.00019178,2]
[360106335,1746551444900,-400.0,0.00019178,2]
[360106337,1746551444910,-400.0,0.00019178,2]
[360106339,1746551444919,-400.0,0.00019178,2]
[360106341,1746551444928,-400.0,0.00019178,2]
[360106343,1746551444937,-400.0,0.00019178,2]
[360106345,1746551444946,-500.0,0.00019178,2]
[360106346,1746551444955,-500.0,0.00019178,2]
[360106347,1746551444964,-500.0,0.00019178,2]
[360106348,1746551444973,-400.0,0.00019178,2]
[360106349,1746551444982,-314.86694994,0.00019178,2]
[360106350,1746551444992,-400.0,0.00019178,2]
[360106351,1746551445001,-400.0,0.00019178,2]
[360106352,1746551445010,-503.78798685,0.00019178,2]
[360106353,1746551445020,-2143.33,0.00019178,2]
[360106354,1746551445029,-1940.39,0.00019178,2]
[360106355,1746551445038,-692.67,0.00019178,2]
[360106356,1746551445048,-400.0,0.00019178,2]
[360106357,1746551445058,-400.0,0.00019178,2]
[360106358,1746551445067,-400.0,0.00019178,2]
[360106359,1746551445077,-400.0,0.00019178,2]
[360106360,1746551445087,-400.0,0.00019178,2]
[360106361,1746551445096,-400.0,0.00019178,2]
[360106362,1746551445105,-4275.0,0.00019178,2]
[360106363,1746551445116,-400.0,0.00019178,2]
[360106364,1746551445126,-400.0,0.00019178,2]
[360106366,1746551445135,-257.3214084,0.00019178,2]
[360106368,1746551445144,-866.6,0.00019178,2]
[360106370,1746551445153,-400.0,0.00019178,2]
[360106372,1746551445163,-400.0,0.00019178,2]
[360106374,1746551445172,-400.0,0.00019178,2]
[360106376,1746551445182,-400.0,0.00019178,2]
[360106378,1746551445192,-400.0,0.00019178,2]
[360106380,1746551445204,-5675.74,0.00019178,2]
[360106382,1746551445213,-400.0,0.00019178,2]
[360106384,1746551445222,-500.0,0.00019178,2]
[360106386,1746551445231,-400.0,0.00019178,2]
[360106388,1746551445243,-639.99,0.00019178,2]
[360106390,1746551445252,-400.0,0.00019178,2]
[360106392,1746551445261,-400.0,0.00019178,2]
[360106394,1746551445271,-3008.22,0.00019178,2]
[360106396,1746551445281,-433.78,0.00019178,2]
[360106398,1746551445291,-400.0,0.00019178,2]
[360106400,1746551445299,-2645.03,0.00019178,2]
[360106402,1746551445309,-400.0,0.00019178,2]
[360106404,1746551445318,-1695.78,0.00019178,2]
[360106406,1746551445328,-666.84,0.00019178,2]
[360106408,1746551445336,-503.55866188,0.00019178,2]
[360106410,1746551445347,-400.0,0.00019178,2]
[360106412,1746551445357,-503.10174603,0.00019178,2]
[360106414,1746551445367,-400.0,0.00019178,2]
[360106416,1746551445376,-2621.11,0.00019178,2]
[360106418,1746551445386,-400.0,0.00019178,2]
[360106420,1746551445395,-400.0,0.00019178,2]
[360106422,1746551445404,-1965.93,0.00019178,2]
[360106424,1746551445413,-401.97286654,0.00019178,2]
[360106426,1746551445422,-400.0,0.00019178,2]
[360106428,1746551445431,-593.48,0.00019178,2]
[360106430,1746551445440,-400.0,0.00019178,2]
[360106432,1746551445450,-451.19,0.00019178,2]
[360106434,1746551445459,-400.0,0.00019178,2]
[360106436,1746551445468,-400.0,0.00019178,2]
[360106438,1746551445477,-400.0,0.00019178,2]
[360106440,1746551445486,-400.0,0.00019178,2]
[360106442,1746551445495,-400.0,0.00019178,2]
[360106444,1746551445504,-400.0,0.00019178,2]
[360106446,1746551445514,-2348.87,0.00019178,2]
[360106448,1746551445523,-400.0,0.00019178,2]
[360106450,1746551445532,-400.0,0.00019178,2]
[360106452,1746551445541,-400.0,0.00019178,2]
[360106454,1746551445550,-2394.23,0.00019178,2]
[360106456,1746551445559,-400.0,0.00019178,2]
[360106458,1746551445568,-400.0,0.00019178,2]
[360106460,1746551445577,-400.0,0.00019178,2]
[360106462,1746551445586,-400.0,0.00019178,2]
[360106464,1746551445596,-400.0,0.00019178,2]
[360106466,1746551445605,-400.0,0.00019178,2]
[360106468,1746551445614,-1202.38,0.00019178,2]
[360106470,1746551445623,-400.0,0.00019178,2]
[360106472,1746551445633,-401.0693151,0.00019178,2]
[360106474,1746551445642,-400.0,0.00019178,2]
[360106476,1746551445652,-400.0,0.00019178,2]
[360106478,1746551445661,-235.51168844,0.00019178,2]
[360106480,1746551445670,-400.0,0.00019178,2]
[360106482,1746551445679,-1234.29,0.00019178,2]
[360106484,1746551445688,-400.0,0.00019178,2]
[360106486,1746551445698,-405.98412562,0.00019178,2]
[360106488,1746551445707,-400.0,0.00019178,2]
[360106490,1746551445716,-400.0,0.00019178,2]
[360106492,1746551445726,-400.0,0.00019178,2]
[360106494,1746551445736,-400.76641592,0.00019178,2]
[360106496,1746551445745,-203.49669118,0.00019178,2]
[360106498,1746551445755,-400.0,0.00019178,2]
[360106500,1746551445764,-400.0,0.00019178,2]
[360106502,1746551445773,-400.0,0.00019178,2]
[360106504,1746551445782,-435.44,0.00019178,2]
[360106506,1746551445792,-289.66766909,0.00019178,2]
[360106508,1746551445801,-400.0,0.00019178,2]
[360106510,1746551445810,-400.0,0.00019178,2]
[360106512,1746551445819,-400.0,0.00019178,2]
[360106514,1746551445829,-778.7,0.00019178,2]
[360106516,1746551445841,-400.0,0.00019178,2]
[360106518,1746551445850,-1324.45,0.00019178,2]
[360106520,1746551445860,-679.47,0.00019178,2]
[360106522,1746551445869,-400.0,0.00019178,2]
[360106524,1746551445878,-400.0,0.00019178,2]
[360106540,1746551446010,-400.0,0.00019178,2]
[360106543,1746551446021,-400.0,0.00019178,2]
[360106545,1746551446031,-400.0,0.00019178,2]
[360106547,1746551446040,-1713.68,0.00019178,2]
[360106549,1746551446049,-282.09599566,0.00019178,2]
[360106551,1746551446059,-735.24,0.00019178,2]
[360106553,1746551446068,-400.0,0.00019178,2]
[360106554,1746551446077,-1762.42,0.00019178,2]
[360106557,1746551446087,-400.0,0.00019178,2]
[360106559,1746551446097,-400.0,0.00019178,2]
[360106561,1746551446106,-400.0,0.00019178,2]
[360106563,1746551446116,-404.18475722,0.00019178,2]
[360106565,1746551446125,-400.0,0.00019178,2]
[360106567,1746551446135,-400.0,0.00019178,2]
[360106569,1746551446144,-1815.93,0.00019178,2]
[360106571,1746551446154,-400.0,0.00019178,2]
[360106573,1746551446163,-407.37330949,0.00019178,2]
[360106575,1746551446173,-647.42,0.00019178,2]
[360106577,1746551446183,-438.48,0.00019178,2]
[360106579,1746551446194,-405.49127718,0.00019178,2]
[360106581,1746551446206,-400.0,0.00019178,2]
[360106583,1746551446215,-400.0,0.00019178,2]
[360106585,1746551446224,-400.0,0.00019178,2]
[360106587,1746551446235,-1456.25,0.00019178,2]
[360106589,1746551446245,-400.0,0.00019178,2]
[360106591,1746551446255,-400.0,0.00019178,2]
[360106593,1746551446265,-1657.12,0.00019178,2]
[360106595,1746551446277,-422.8,0.00019178,2]
[360106597,1746551446287,-403.25345902,0.00019178,2]
[360106599,1746551446296,-2093.85,0.00019178,2]
[360106601,1746551446306,-500.0,0.00019178,2]
[360106603,1746551446316,-400.0,0.00019178,2]
[360106605,1746551446326,-500.0,0.00019178,2]
[360106607,1746551446336,-500.0,0.00019178,2]
[360106609,1746551446346,-500.0,0.00019178,2]
[360106611,1746551446355,-500.0,0.00019178,2]
[360106613,1746551446365,-500.0,0.00019178,2]
[360106615,1746551446375,-205.07269539,0.00019178,2]
[360106617,1746551446385,-500.0,0.00019178,2]
[360106619,1746551446395,-500.0,0.00019178,2]
[360106621,1746551446406,-500.0,0.00019178,2]
[360106624,1746551446415,-500.0,0.00019178,2]
[360106625,1746551446425,-500.0,0.00019178,2]
[360106627,1746551446437,-500.0,0.00019178,2]
[360106630,1746551446448,-500.0,0.00019178,2]
[360106632,1746551446461,-500.0,0.00019178,2]
[360106634,1746551446471,-500.0,0.00019178,2]
[360106636,1746551446480,-500.0,0.00019178,2]
[360106638,1746551446489,-500.0,0.00019178,2]
[360106640,1746551446499,-500.0,0.00019178,2]
[360106642,1746551446508,-500.0,0.00019178,2]
[360106644,1746551446517,-500.0,0.00019178,2]
[360106646,1746551446526,-174.11657521,0.00019178,2]
[360106648,1746551446535,-500.0,0.00019178,2]
[360106650,1746551446545,-500.0,0.00019178,2]
[360106652,1746551446554,-500.0,0.00019178,2]
[360106654,1746551446563,-500.0,0.00019178,2]
[360106656,1746551446572,-500.0,0.00019178,2]
[360106658,1746551446581,-500.0,0.00019178,2]
[360106660,1746551446590,-500.0,0.00019178,2]
[360106662,1746551446599,-500.0,0.00019178,2]
[360106664,1746551446608,-500.0,0.00019178,2]
[360106666,1746551446619,-500.0,0.00019178,2]
[360106668,1746551446628,-500.0,0.00019178,2]
[360106670,1746551446637,-500.0,0.00019178,2]
[360106672,1746551446646,-500.0,0.00019178,2]
[360106674,1746551446656,-500.0,0.00019178,2]
[360106676,1746551446665,-500.0,0.00019178,2]
[360106678,1746551446674,-500.0,0.00019178,2]
[360106680,1746551446684,-400.0,0.00019178,2]
[360106682,1746551446694,-500.0,0.00019178,2]
[360106684,1746551446704,-500.0,0.00019178,2]
[360106686,1746551446713,-500.0,0.00019178,2]
[360106688,1746551446723,-500.0,0.00019178,2]
[360106690,1746551446733,-400.0,0.00019178,2]